fUSD/lending_fUSD_20260415
["ID","MTS","AMOUNT","RATE_DAILY","PERIOD"]
[420521354,1776228642406,-1265.0,0.0001386,2]
[420521355,1776228642423,-1218.0,0.0001386,2]
[420521357,1776228642449,-926.0,0.0001386,2]
[420521359,1776228642464,-6027.0,0.0001386,2]
[420521361,1776228642486,-3777.0,0.0001386,2]
[420521363,1776228642499,-170.0,0.0001386,2]
[420521365,1776228642510,-172.42901639,0.00013951,2]
[420521367,1776228642529,-789.959,0.00013951,2]
[420521370,1776228642541,-160.0,0.00013984,2]
[420521371,1776228642553,-1055.7193136,0.0001411,2]
[420521372,1776228642568,-385.0,0.00014112,5]
[420521373,1776228642582,-1000.0,0.00014121,2]
[420521374,1776228642593,-4647.4223143,0.00014199,2]
[420521375,1776228642603,-9628.12106076,0.00014199,2]
[420521376,1776228642617,-1800.02694516,0.00014199,2]
[420521377,1776228642635,-620.99418977,0.00014199,2]
[420521378,1776228642839,-2473.0,0.0001386,2]
[420521379,1776228642850,-19328.55128691,0.00014199,2]
[420521380,1776228642860,-626.64,0.00014204,2]
[420521381,1776228642869,-626.64,0.00014204,2]
[420521382,1776228642879,-200.0,0.00014205,2]
[420521383,1776228642888,-200.0,0.00014205,2]
[420521384,1776228642897,-151.0,0.00014205,2]
[420521385,1776228642907,-500.0,0.00014205,2]
[420521386,1776228642916,-152.0,0.00014205,3]
[420521387,1776228642925,-151.64471322,0.00014226,4]
[420521388,1776228642935,-166.66,0.00014247,2]
[420521389,1776228642944,-1439.0,0.00014247,2]
[420521390,1776228642955,-500.0,0.00014281,2]
[420521391,1776228642965,-150.0,0.000143,2]
[420521392,1776228642975,-200.0,0.00014347,2]
[420521393,1776228642985,-1055.7193136,0.00014365,2]
[420521394,1776228642996,-166.66,0.00014384,2]
[420521395,1776228643008,-211.06631439,0.000145,4]
[420521396,1776228643018,-160.0,0.0001452,2]
[420521398,1776228643027,-800.0,0.00014582,2]
[420521400,1776228643037,-1500.0,0.00014582,2]
[420521402,1776228643053,-161.38481728,0.00014599,2]
[420521404,1776228643064,-1055.7193136,0.00014621,2]
[420521405,1776228643073,-1001.98527228,0.00014668,2]
[420521407,1776228643087,-1259.0,0.00014702,2]
[420521408,1776228643101,-1228.0,0.00014702,2]
[420521409,1776228643112,-300.0,0.00014771,2]
[420521410,1776228643130,-300.0,0.00014771,2]
[420521411,1776228643140,-300.0,0.00014771,2]
[420521412,1776228643150,-300.0,0.00014771,2]
[420521413,1776228643171,-300.0,0.00014771,2]
[420521414,1776228643180,-2500.0,0.00014771,2]
[420521415,1776228643190,-2500.0,0.00014771,2]
[420521416,1776228643207,-2500.0,0.00014771,2]
[420521417,1776228643222,-2500.0,0.00014771,2]
[420521418,1776228643232,-2500.0,0.00014771,2]
[420521419,1776228643241,-600.0,0.00014771,2]
[420521420,1776228643262,-300.15120306,0.00014771,2]
[420521421,1776228643272,-1439.0,0.00014795,2]
[420521422,1776228643282,-1055.7193136,0.00014877,2]
[420521423,1776228643294,-5000.0,0.000149,2]
[420521424,1776228643311,-341.29504562,0.000149,2]
[420521425,1776228643321,-287.901496,0.00014984,2]
[420521426,1776228643331,-150.0,0.00014984,2]
[420521427,1776228643347,-1055.24611916,0.00014994,2]
[420521428,1776228643356,-250.0,0.00014994,2]
[420521429,1776228643366,-50000.0,0.00015,2]
[420521430,1776228643380,-300.0,0.00015,2]
[420521431,1776228643390,-151.0,0.00015,2]
[420521432,1776228643399,-151.0,0.00015,2]
[420521433,1776228643409,-151.0,0.00015,2]
[420521434,1776228643421,-151.0,0.00015,2]
[420521435,1776228643433,-151.0,0.00015,2]
[420521436,1776228643442,-341.29504561,0.0001505,2]
[420521437,1776228643451,-200.0,0.00015068,2]
[420521438,1776228643461,-151.0,0.00015099,2]
[420521439,1776228643476,-151.0,0.00015099,2]
[420521440,1776228643485,-626.64,0.00015124,2]
[420521441,1776228643495,-1055.7193136,0.00015133,2]
[420521442,1776228643511,-164.7208,0.0001517,2]
[420521443,1776228643524,-152.0,0.0001518,2]
[420521444,1776228643533,-1000.0,0.00015199,2]
[420521445,1776228643548,-169.5464455,0.000152,2]
[420521446,1776228643566,-341.29504561,0.000152,2]
[420521447,1776228643576,-329.25818008,0.000152,2]
[420521448,1776228643592,-300.0,0.00015216,2]
[420521449,1776228643612,-300.0,0.00015216,2]
[420521450,1776228643622,-299.98,0.00015216,2]
[420521451,1776228643647,-525.568331,0.00015219,2]
[420521452,1776228643661,-352.62760851,0.00015243,4]
[420521453,1776228643677,-1000.0,0.0001527,2]
[420521454,1776228643690,-1655.13652994,0.0001527,2]
[420521455,1776228643705,-500.0,0.00015273,2]
[420521456,1776228643720,-500.0,0.00015273,2]
[420521457,1776228643733,-500.0,0.00015273,2]
[420521458,1776228643763,-500.0,0.00015273,2]
[420521459,1776228643773,-501.16478036,0.00015273,2]
[420521460,1776228643807,-502.30174809,0.00015273,2]
[420521461,1776228643847,-500.0,0.00015273,2]
[420521462,1776228643951,-500.0,0.00015273,2]
[420521463,1776228644076,-500.0,0.00015273,2]
[420521464,1776228644174,-276.57520942,0.00015283,2]
[420521465,1776228644259,-177.94006888,0.0001529,2]
[420521466,1776228644291,-150.0,0.00015299,2]
[420521467,1776228644303,-626.64,0.00015299,2]
[420521468,1776228644316,-626.64,0.00015299,2]
[420521469,1776228644328,-626.64,0.00015299,2]
[420521470,1776228644338,-123.45630505,0.00015299,2]
[420521471,1776228644357,-503.18369495,0.00015299,2]
[420521472,1776228644368,-626.64,0.00015299,2]
[420521473,1776228644379,-626.64,0.00015299,2]
[420521474,1776228644390,-150.85780901,0.00015299,2]
[420521475,1776228644401,-500.0,0.00015299,2]
[420521476,1776228644411,-500.0,0.00015299,2]
[420521477,1776228644422,-500.0,0.00015299,2]
[420521478,1776228644432,-500.0,0.00015299,2]
[420521479,1776228644442,-500.0,0.00015299,2]
[420521480,1776228644452,-500.0,0.00015299,2]
[420521481,1776228644462,-500.0,0.00015299,2]
[420521482,1776228644473,-339.0,0.000153,5]
[420521483,1776228644483,-31967.58031532,0.000153,2]
[420521484,1776228644500,-900.0,0.000153,2]
[420521485,1776228645874,-212.13254421,0.00015299,2]
[420521486,1776228645906,-2212.05774888,0.000153,2]
[420521487,1776228645923,-5815.39815535,0.000153,2]
[420521488,1776228645985,-683.0251713,0.00014994,2]
[420521489,1776228646095,-20.47224147,0.00014994,2]
[420521490,1776228646107,-9979.61825142,0.000153,2]
[420521514,1776229537153,165.44,0.000165,30]
[420521518,1776229772666,-500.0,0.00010699,2]
[420521519,1776229772694,-500.0,0.00010699,2]
[420521520,1776229772723,-500.0,0.00010699,2]
[420521521,1776229772754,-500.0,0.00010699,2]
[420521522,1776229772782,-500.0,0.00010699,2]
[420521523,1776229772811,-500.0,0.00010699,2]
[420521524,1776229772839,-500.0,0.00010699,2]
[420521525,1776229772870,-500.0,0.00010699,2]
[420521526,1776229772899,-500.0,0.00010699,2]
[420521527,1776229772927,-500.0,0.00010699,2]
[420521528,1776229772954,-500.0,0.00010699,2]
[420521529,1776229772991,-600.0,0.00010699,2]
[420521530,1776229773019,-500.0,0.00010699,2]
[420521531,1776229773053,-362.47714776,0.00010699,2]
[420521545,1776229834211,-26341.93672108,0.000107,2]
[420521546,1776229834290,-93795.59700926,0.000107,2]
[420521547,1776229834302,-498.89387459,0.000107,2]
[420521551,1776229838198,-325.02024,0.000107,2]
[420521552,1776229838211,-513.67975255,0.000107,2]
[420521553,1776229838507,-267.29626824,0.000107,2]
[420521573,1776229840094,-455.56694874,0.000107,2]
[420521574,1776229840123,-4592.95275965,0.000107,2]
[420521575,1776229840149,-19799.755009,0.000107,2]
[420521576,1776229840686,-4033.83217871,0.000107,2]
[420521594,1776229842969,-15238.64290021,0.000107,2]
[420521595,1776229843003,-565.07522446,0.000107,2]
[420521596,1776229843025,-412.7515467,0.000107,2]
[420521599,1776229843046,-888.0,0.000107,2]
[420521601,1776229843349,-3529.67941096,0.000107,2]
[420521603,1776229843476,-87285.58671358,0.000107,2]
[420521607,1776229846523,-379.60961904,0.000107,2]
[420521608,1776229846552,-1285.10997865,0.000107,2]
[420521609,1776229846564,-616.0,0.000107,2]
[420521610,1776229846588,-1097.91150711,0.000107,2]
[420521612,1776229846607,-17871.35132159,0.000107,2]
[420521613,1776229846623,-923.0,0.000107,2]
[420521619,1776229850122,-4087.2501915,0.000107,2]
[420521644,1776230952175,-581.44217133,0.00010699,2]
[420521652,1776231032457,-1005.3639732,0.000106,2]
[420521653,1776231032489,-418.75,0.000106,2]
[420521654,1776231032521,-581.91464782,0.000106,2]
[420521655,1776231032545,-347.8503141,0.000106,2]
[420521656,1776231032568,-1552.98,0.000106,2]
[420521659,1776231032703,-1640.67172989,0.000106,2]
[420521660,1776231032731,-1794.47750331,0.000106,2]
[420521661,1776231032750,-462.46160238,0.000106,2]
[420521662,1776231032775,-2195.5302293,0.000106,2]
[420521663,1776231032789,-438.0,0.00010699,2]
[420521664,1776231032803,-7801.87804908,0.000107,2]
[420521665,1776231032822,-219.4,0.000107,2]
[420521666,1776231032838,-179.0,0.000107,3]
[420521668,1776231032857,-164.0,0.000107,3]
[420521670,1776231032872,-172.88,0.0001096,2]
[420521671,1776231032893,-5000.0,0.00011769,2]
[420521673,1776231032904,-196.7243967,0.00011769,2]
[420521676,1776231032918,-5000.0,0.00011769,2]
[420521677,1776231032942,-287.2257902,0.00011866,2]
[420521678,1776231032955,-1600.0,0.00012508,2]
[420521679,1776231032967,-164.0,0.00012583,3]
[420521681,1776231032985,-200.0,0.00012669,2]
[420521682,1776231032998,-640.63,0.00012745,2]
[420521683,1776231033014,-150.0,0.00012959,2]
[420521684,1776231033029,-24999.99,0.0001296,2]
[420521685,1776231033043,-9999.99,0.00013,2]
[420521686,1776231033058,-9999.99,0.00013,2]
[420521687,1776231033076,-250.0,0.00013,2]
[420521688,1776231033089,-150.0,0.00013343,2]
[420521689,1776231033104,-44719.1175,0.000134,2]
[420521690,1776231033126,-257.35362056,0.000134,2]
[420521691,1776231033137,-3240.0,0.00013425,2]
[420521692,1776231033152,-1010.79,0.00013431,2]
[420521693,1776231033170,-200.0,0.00013492,2]
[420521694,1776231033181,-151.0,0.00013492,2]
[420521695,1776231033194,-151.0,0.00013492,2]
[420521696,1776231033216,-151.0,0.00013492,2]
[420521697,1776231033226,-151.0,0.00013492,2]
[420521698,1776231033239,-151.0,0.00013492,2]
[420521699,1776231033257,-151.0,0.00013492,2]
[420521700,1776231033267,-151.0,0.00013492,2]
[420521701,1776231033279,-151.0,0.00013492,2]
[420521702,1776231033291,-151.0,0.00013492,2]
[420521703,1776231033302,-159.55228771,0.00013492,2]
[420521704,1776231033312,-500.0,0.00013492,2]
[420521705,1776231033323,-500.0,0.00013492,2]
[420521706,1776231033335,-500.0,0.00013492,2]
[420521707,1776231033346,-151.45123343,0.00013492,2]
[420521708,1776231033357,-500.0,0.00013492,2]
[420521709,1776231033367,-500.0,0.00013492,2]
[420521710,1776231033382,-151.0,0.00013492,2]
[420521711,1776231033393,-500.0,0.00013492,2]
[420521712,1776231033403,-151.0,0.00013492,2]
[420521713,1776231033414,-500.0,0.00013492,2]
[420521714,1776231033430,-151.0,0.00013492,2]
[420521715,1776231033445,-500.0,0.00013492,2]
[420521716,1776231033455,-151.0,0.00013492,2]
[420521717,1776231033479,-500.0,0.00013492,2]
[420521718,1776231033501,-153.92192966,0.00013492,2]
[420521719,1776231033529,-500.0,0.00013492,2]
[420521720,1776231033539,-500.0,0.00013492,2]
[420521721,1776231033553,-500.0,0.00013492,2]
[420521722,1776231033573,-500.0,0.00013492,2]
[420521723,1776231033584,-500.0,0.00013492,2]
[420521724,1776231033596,-500.0,0.00013492,2]
[420521725,1776231033611,-500.0,0.00013492,2]
[420521726,1776231033623,-500.0,0.00013492,2]
[420521727,1776231033635,-500.0,0.00013492,2]
[420521728,1776231033653,-442.96932386,0.00013492,2]
[420521729,1776231033663,-179.31804148,0.00013499,2]
[420521730,1776231033676,-643.52449104,0.00013499,2]
[420521731,1776231033689,-410.43140822,0.00013499,2]
[420521732,1776231033700,-500.0,0.00013499,2]
[420521733,1776231033710,-500.0,0.00013499,2]
[420521734,1776231033727,-500.0,0.00013499,2]
[420521735,1776231033740,-500.0,0.00013499,2]
[420521736,1776231033751,-500.0,0.00013499,2]
[420521737,1776231033763,-500.0,0.00013499,2]
[420521738,1776231033780,-500.0,0.00013499,2]
[420521739,1776231033791,-500.0,0.00013499,2]
[420521740,1776231033803,-500.0,0.00013499,2]
[420521741,1776231033819,-500.0,0.00013499,2]
[420521742,1776231033830,-500.0,0.00013499,2]
[420521743,1776231033843,-500.0,0.00013499,2]
[420521744,1776231033858,-500.0,0.00013499,2]
[420521745,1776231033870,-500.0,0.00013499,2]
[420521746,1776231033883,-500.0,0.00013499,2]
[420521747,1776231033894,-500.0,0.00013499,2]
[420521748,1776231033915,-500.0,0.00013499,2]
[420521749,1776231033930,-500.0,0.00013499,2]
[420521750,1776231033943,-500.0,0.00013499,2]
[420521751,1776231033962,-500.0,0.00013499,2]
[420521752,1776231033979,-500.0,0.00013499,2]
[420521753,1776231034003,-500.0,0.00013499,2]
[420521754,1776231034019,-500.0,0.00013499,2]
[420521755,1776231034039,-500.0,0.00013499,2]
[420521756,1776231034049,-500.0,0.00013499,2]
[420521757,1776231034065,-500.0,0.00013499,2]
[420521758,1776231034086,-500.0,0.00013499,2]
[420521759,1776231034097,-500.0,0.00013499,2]
[420521760,1776231034107,-500.0,0.00013499,2]
[420521761,1776231034129,-631.967,0.00013499,2]
[420521762,1776231034140,-500.0,0.00013499,2]
[420521763,1776231034151,-500.0,0.00013499,2]
[420521764,1776231034163,-500.0,0.00013499,2]
[420521765,1776231034186,-500.0,0.00013499,2]
[420521766,1776231034197,-500.0,0.00013499,2]
[420521767,1776231034214,-500.0,0.00013499,2]
[420521768,1776231034236,-500.0,0.00013499,2]
[420521769,1776231034250,-500.0,0.00013499,2]
[420521770,1776231034276,-500.0,0.00013499,2]
[420521771,1776231034285,-500.0,0.00013499,2]
[420521772,1776231034319,-272.13420778,0.00013499,2]
[420521773,1776231034330,-500.0,0.00013499,2]
[420521774,1776231034365,-500.0,0.00013499,2]
[420521775,1776231034381,-500.0,0.00013499,2]
[420521776,1776231034411,-500.0,0.00013499,2]
[420521777,1776231034422,-500.0,0.00013499,2]
[420521778,1776231034453,-500.0,0.00013499,2]
[420521779,1776231034464,-500.0,0.00013499,2]
[420521780,1776231034493,-500.0,0.00013499,2]
[420521781,1776231034505,-500.0,0.00013499,2]
[420521782,1776231034530,-500.0,0.00013499,2]
[420521783,1776231034550,-500.0,0.00013499,2]
[420521784,1776231034569,-188.87,0.00013499,2]
[420521785,1776231034590,-500.0,0.00013499,2]
[420521786,1776231034603,-230.62795608,0.00013499,2]
[420521787,1776231034638,-250.0,0.00013499,2]
[420521788,1776231034652,-257.35362054,0.000135,2]
[420521789,1776231034692,-245650.0814,0.000135,2]
[420521790,1776231034708,-335096.68556088,0.000135,2]
[420521791,1776231034746,-284.15203215,0.000135,2]
[420521794,1776231038258,-2008.31450221,0.00013399,2]
[420521795,1776231038320,-1756.94772498,0.00013399,2]
[420521796,1776231038334,-7258.90828051,0.000135,2]
[420521797,1776231038384,-1475.05137991,0.000135,2]
[420521798,1776231038398,-866.12932493,0.000135,2]
[420521799,1776231038421,-2604.06146122,0.000135,2]
[420521800,1776231038448,-750.89638,0.000135,2]
[420521801,1776231038465,-313.78950223,0.000135,2]
[420521802,1776231038689,-205141.16373674,0.000135,2]
[420521803,1776231038723,-1618.8296908,0.000135,2]
[420521804,1776231038750,-2085.55864785,0.000135,2]
[420521824,1776231040673,-335.38,0.000135,2]
[420521825,1776231040685,-6222.44415118,0.000135,2]
[420521826,1776231040961,-297.0302,0.000135,2]
[420521832,1776231043728,-12610.85446704,0.000135,2]
[420521839,1776231046442,-1998.167801,0.000135,2]
[420521840,1776231046595,-1777.293386,0.000135,2]
[420521890,1776232038166,-1504.581227,9.948e-05,2]
[420521891,1776232038187,-150.0,9.999e-05,2]
[420521892,1776232038209,-1000.0,0.0001,2]
[420521893,1776232038230,-1000.0,0.0001,2]
[420521894,1776232038250,-1000.0,0.0001,2]
[420521895,1776232038270,-1000.0,0.0001,2]
[420521896,1776232038291,-1000.0,0.0001,2]
[420521897,1776232038311,-1000.0,0.0001,2]
[420521898,1776232038331,-1000.0,0.0001,2]
[420521899,1776232038351,-1000.0,0.0001,2]
[420521900,1776232038372,-1000.0,0.0001,2]
[420521901,1776232038393,-1000.0,0.0001,2]
[420521902,1776232038414,-252.37551152,0.00010943,2]
[420521903,1776232038434,-1946.37860251,0.00012574,2]
[420521907,1776232233710,-454.0775,0.00012474,2]
[420521908,1776232233723,-53.62139749,0.00012574,2]
[420521909,1776232233742,-12149.3,0.00012833,2]
[420521910,1776232233755,-500.0,0.0001286,2]
[420521911,1776232233767,-158.21,0.0001286,2]
[420521912,1776232233789,-1189.07,0.00012862,2]
[420521913,1776232233799,-2500.0,0.000133,2]
[420521914,1776232233811,-165.99313398,0.000133,2]
[420521915,1776232233835,-7523.57059894,0.000133,2]
[420521916,1776232233845,-9999.99,0.00013392,2]
[420521917,1776232233864,-9219.84,0.00013392,2]
[420521918,1776232233881,-215.38143999,0.00013392,2]
[420521919,1776232233891,-500.0,0.00013392,2]
[420521920,1776232233908,-500.0,0.00013392,2]
[420521921,1776232233929,-500.0,0.00013392,2]
[420521922,1776232233940,-500.0,0.00013392,2]
[420521923,1776232233973,-500.0,0.00013392,2]
[420521925,1776232233983,-500.0,0.00013392,2]
[420521926,1776232234016,-500.0,0.00013392,2]
[420521928,1776232234026,-500.0,0.00013392,2]
[420521930,1776232234063,-500.0,0.00013392,2]
[420521932,1776232234076,-474.93916285,0.00013392,2]
[420521934,1776232234112,-500.0,0.00013399,2]
[420521936,1776232234134,-500.0,0.00013399,2]
[420521939,1776232234177,-500.0,0.00013399,2]
[420521941,1776232234221,-500.0,0.00013399,2]
[420521943,1776232234251,-500.0,0.00013399,2]
[420521946,1776232234270,-327.21342077,0.00013399,2]
[420521949,1776232234298,-500.0,0.00013399,2]
[420521953,1776232234323,-88846.16614062,0.000134,2]
[420522002,1776232236366,-72576.35640021,0.000134,2]
[420522003,1776232236385,-30489.75605917,0.000134,2]
[420522004,1776232236403,-13469.9199954,0.000134,2]
[420522005,1776232236454,-3071.81881226,0.000134,2]
[420522006,1776232236477,-1351.1837267,0.000134,2]
[420522007,1776232236508,-300.0,0.000134,2]
[420522014,1776232238515,-816.62506821,0.000134,2]
[420522015,1776232238947,-107283.50822637,0.000134,2]
[420522016,1776232238989,-998.63145019,0.000134,2]
[420522017,1776232239027,-1649.75232009,0.000134,2]
[420522019,1776232239047,-1941.94689942,0.000134,2]
[420522022,1776232239067,-2131.61402826,0.000134,2]
[420522023,1776232239097,-784.67210899,0.000134,2]
[420522041,1776232239606,-87.10966411,0.000134,2]
[420522042,1776232239618,-400.0013,0.000134,2]
[420522043,1776232239627,-1000.0,0.000134,2]
[420522044,1776232239643,-52.14759874,0.000135,2]
[420522050,1776232241267,-739.0,0.000135,2]
[420522056,1776232243936,-34863.46340245,0.000135,2]
[420522060,1776232248739,-1519.40595,0.000135,2]
[420522061,1776232248760,-1264.56,0.000135,2]
[420522062,1776232248824,-61870.37509591,0.000135,2]
[420522063,1776232248835,-190.3035439,0.000135,2]
[420522064,1776232248852,-151.0,0.000135,2]
[420522065,1776232248862,-231.66888202,0.000135,2]
[420522066,1776232248871,-151.0,0.000135,2]
[420522067,1776232248886,-151.0,0.000135,2]
[420522068,1776232248907,-151.0,0.000135,2]
[420522069,1776232248916,-151.0,0.000135,2]
[420522070,1776232248945,-151.0,0.000135,2]
[420522071,1776232248961,-151.0,0.000135,2]
[420522072,1776232248987,-151.0,0.000135,2]
[420522073,1776232249004,-192.999377,0.000135,2]
[420522074,1776232249037,-192.999377,0.000135,2]
[420522075,1776232249050,-192.999377,0.000135,2]
[420522076,1776232249082,-192.999377,0.000135,2]
[420522077,1776232249099,-156.0,0.000135,3]
[420522078,1776232249119,-275.155818,0.000135,2]
[420522079,1776232249148,-151.0,0.000135,2]
[420522080,1776232249161,-275.155818,0.000135,2]
[420522081,1776232249186,-275.155818,0.000135,2]
[420522082,1776232249202,-275.155818,0.000135,2]
[420522083,1776232249236,-257.38021259,0.00013588,2]
[420522084,1776232249261,-301.9196148,0.00013588,2]
[420522085,1776232249287,-172.86389221,0.00013588,2]
[420522086,1776232249314,-407.19551336,0.00013588,2]
[420522087,1776232249339,-7523.57059885,0.00013589,2]
[420522088,1776232249348,-10705.29668877,0.000136,2]
[420522126,1776233431661,-280.0,0.0001,2]
[420522127,1776233431674,-220.0,0.000103,5]
[420522128,1776233431806,-5312.0,0.000103,5]
[420522129,1776233431821,-104276.25383723,0.000107,2]
[420522131,1776233431895,-2520.82143017,0.000107,2]
[420522133,1776233437855,-74138.95729725,0.000107,2]
[420522134,1776233437872,-150.0,0.0001096,2]
[420522135,1776233437888,-389.61531951,0.00011,2]
[420522136,1776233437903,-3605.10275938,0.00011099,2]
[420522137,1776233437922,-3605.10275936,0.00011456,2]
[420522138,1776233437939,-3605.10275936,0.00012011,2]
[420522139,1776233437953,-1726.57,0.00012227,2]
[420522140,1776233437972,-533.98,0.00012412,2]
[420522141,1776233437988,-1600.0,0.00012536,2]
[420522142,1776233438004,-3605.10275936,0.00012567,2]
[420522143,1776233438022,-150.0,0.00012576,2]
[420522144,1776233438037,-1260.77,0.00012934,2]
[420522145,1776233438058,-250.0,0.00013,2]
[420522146,1776233438074,-3605.10275936,0.00013122,2]
[420522147,1776233438091,-13131.21755996,0.00013156,2]
[420522148,1776233438179,-306.68099864,0.00013156,2]
[420522149,1776233438212,-499.40535172,0.00013156,2]
[420522208,1776233441907,-391.52781245,0.00013156,2]
[420522210,1776233442861,-1241.34398189,0.00013156,2]
[420522211,1776233442877,-3165.32429534,0.00013156,2]
[420522212,1776233442892,-500.0,0.00013173,2]
[420522213,1776233442902,-500.0,0.00013192,2]
[420522214,1776233442915,-500.0,0.00013192,2]
[420522215,1776233442928,-151.0,0.00013192,2]
[420522216,1776233442945,-151.0,0.00013192,2]
[420522217,1776233442954,-151.0,0.00013192,2]
[420522218,1776233442967,-151.0,0.00013192,2]
[420522219,1776233442980,-151.0,0.00013192,2]
[420522220,1776233442997,-151.0,0.00013192,2]
[420522221,1776233443007,-151.0,0.00013192,2]
[420522222,1776233443020,-151.0,0.00013192,2]
[420522223,1776233443034,-151.0,0.00013192,2]
[420522224,1776233443045,-151.0,0.00013192,2]
[420522225,1776233443055,-151.0,0.00013192,2]
[420522226,1776233443072,-151.0,0.00013192,2]
[420522227,1776233443084,-500.0,0.0001325,2]
[420522228,1776233443095,-500.33773048,0.0001325,2]
[420522229,1776233443112,-500.22518151,0.0001325,2]
[420522230,1776233443125,-500.23646401,0.0001325,2]
[420522231,1776233443135,-500.0,0.0001325,2]
[420522232,1776233443147,-316.21010929,0.0001325,2]
[420522233,1776233443164,-500.0,0.0001325,2]
[420522234,1776233443174,-210.60663321,0.0001325,2]
[420522235,1776233443184,-500.0,0.0001325,2]
[420522236,1776233443196,-500.68633184,0.0001325,2]
[420522237,1776233443211,-501.07774251,0.0001325,2]
[420522238,1776233443220,-500.0,0.00013273,2]
[420522239,1776233443231,-369.69038009,0.00013299,2]
[420522240,1776233443243,-1000.0,0.000133,2]
[420522241,1776233443254,-4959.80285072,0.000133,2]
[420522242,1776233443282,-6259.61514771,0.000133,2]
[420522245,1776233446327,-17485.08670157,0.000133,2]
[420522246,1776233446346,-150.0,0.00013332,2]
[420522247,1776233446396,-825.77066684,0.000134,2]
[420522248,1776233446410,-154.399501,0.00013411,2]
[420522249,1776233446430,-154.399501,0.00013411,2]
[420522250,1776233446443,-154.399501,0.00013411,2]
[420522251,1776233446455,-154.399501,0.00013411,2]
[420522252,1776233446470,-5234.27826085,0.00013431,2]
[420522253,1776233446487,-16272.25851535,0.00013431,2]
[420522254,1776233446496,-508.0,0.000135,2]
[420522255,1776233446511,-6018.85647908,0.000135,2]
[420522256,1776233446523,-384.24984684,0.00013513,2]
[420522257,1776233446535,-150.0,0.00013513,2]
[420522258,1776233446547,-88253.92164398,0.000136,2]
[420522259,1776233446559,-150.0,0.000136,2]
[420522260,1776233446571,-231.66888203,0.000136,2]
[420522261,1776233446580,-151.0,0.000136,2]
[420522262,1776233446591,-151.0,0.000136,2]
[420522263,1776233446601,-151.0,0.000136,2]
[420522264,1776233446614,-170.716793,0.000136,2]
[420522265,1776233446623,-151.0,0.000136,2]
[420522266,1776233446635,-231.556024,0.000136,2]
[420522267,1776233446645,-1333.33333,0.000136,2]
[420522268,1776233446657,-154.399501,0.000136,2]
[420522269,1776233446667,-154.399501,0.000136,2]
[420522270,1776233446677,-154.399501,0.000136,2]
[420522271,1776233446687,-154.399501,0.000136,2]
[420522272,1776233446699,-156.0,0.000136,3]
[420522273,1776233446708,-259.0,0.000136,3]
[420522274,1776233446718,-1047.0,0.00013637,2]
[420522275,1776233446731,-622.0,0.00013637,2]
[420522276,1776233446743,-1265.0,0.00013637,2]
[420522277,1776233446752,-1218.0,0.00013637,2]
[420522278,1776233446761,-926.0,0.00013637,2]
[420522279,1776233446772,-6027.0,0.00013637,2]
[420522280,1776233446783,-416.0,0.00013637,2]
[420522281,1776233446793,-2473.0,0.00013637,2]
[420522282,1776233446803,-3605.10275936,0.00013678,2]
[420522283,1776233446812,-532.77897422,0.00013698,2]
[420522284,1776233446821,-2840.40201502,0.00013699,2]